Cogmind - Beta 9.6 @@@ ROGUE MODE // 2020.06.15 @ 07:13:46 Player: Vectis Result: Destroyed by as-57732 with Assembled Heavy Rifle Performance ------------- Evolutions (4) 2000 Regions Visited (15) 3000 Robots Destroyed (96) 480 Value Destroyed (2260) 2260 Prototype IDs (23) 460 Alien Tech Used (0) 0 Bonus (931) 931 TOTAL SCORE: 9131 Bonus ------- High Alert Combat Kills 11 Follower Combat Kills 139 Met Data Miner 300 Destroyed Z-Imprinter 1000 Friendly Fire -519 Cogmind --------- Core Integrity 0/850 Matter 223/300 Energy 100/100 System Corruption 2% Temperature Cool (0) Movement Core (50) Location -6/Deep Caves Parts ------- > --- POWER (1) -------- (None) > --- PROPULSION (3) --- (None) > --- UTILITY (9) ------ Advanced Signal Interpreter Advanced Targeting Computer Advanced Targeting Computer Advanced Targeting Computer Advanced Melee Analysis Suite Experimental Core Analyzer > --- WEAPON (2) ------- (None) > --- INVENTORY (4) ---- Experimental Cesium-ion Thruster Weapon Cycler Advanced System Shield Peak State ------------ > --- POWER ------------ Light Deuterium Engine > --- PROPULSION ------- Improved Flight Unit Cesium-ion Thruster Improved Cesium-ion Thruster > --- UTILITY ---------- Medium Storage Unit Advanced Signal Interpreter Advanced Melee Analysis Suite Experimental Target Analyzer Experimental Core Analyzer Improved Hacking Suite Improved Hacking Suite Improved Hacking Suite System Shield > --- WEAPON ----------- Chainsword Makeshift Spear > --- INVENTORY -------- Experimental Cesium-ion Thruster Advanced Targeting Computer Advanced Targeting Computer Advanced Targeting Computer Armor Integrity Analyzer Weapon Cycler Hypervelocity Gauss Rifle Hypervelocity Gauss Rifle [Rating: 71] Favorites ----------- Power Improved Ion Engine Engine Improved Ion Engine Power Core Light Nuclear Core Propulsion Light Treads Treads Light Treads Leg Carbon-fiber Leg Wheel Wheel Flight Unit Improved Flight Unit Utility System Shield Device Advanced Sensor Array Storage Medium Storage Unit Processor Advanced Signal Interpreter Hackware System Shield Protection Improved Light Armor Plating Weapon Chainsword Energy Gun Improved Medium Laser Ballistic Gun Light Assault Rifle Launcher Heavy Missile Launcher Slashing Weapon Chainsword Piercing Weapon Makeshift Spear Build | -11 -10 -10 -10 -9 -8 -7 -7 -7 -7 -6 -6 -6 -6 -6 -6 ------- Run | Scr Mat Min Exi Min Mat Fac Low Low Dat Pro Fac Low Low Zio Dee Slots Evolved 8 | . . . . . 4 2 . . . . 2 . . . . Power . | . . . . . . . . . . . . . . . . Propulsion 1 | . . . . . 1 . . . . . . . . . . Utility 7 | . . . . . 3 2 . . . . 2 . . . . Weapon . | . . . . . . . . . . . . . . . . Parts Attached 138 | 8 4 3 1 2 61 17 . 6 . 6 11 . 3 12 4 Power 15 | 2 . . . . 5 4 . 1 . 1 1 . 1 . . Engine 7 | 2 . . . . 4 . . . . . . . 1 . . Core 8 | . . . . . 1 4 . 1 . 1 1 . . . . Reactor . | . . . . . . . . . . . . . . . . Propulsion 31 | 2 . . . . 22 3 . . . 1 2 . . 1 . Treads 15 | 2 . . . . 13 . . . . . . . . . . Leg 1 | . . . . . 1 . . . . . . . . . . Wheel 4 | . . . . . 4 . . . . . . . . . . Hover . | . . . . . . . . . . . . . . . . Flight 11 | . . . . . 4 3 . . . 1 2 . . 1 . Utility 44 | 2 2 . 1 . 15 8 . . . . 4 . 1 10 1 Device 4 | . . . . . 2 . . . . . 1 . . 1 . Storage 6 | 2 2 . 1 . 1 . . . . . . . . . . Processor 22 | . . . . . 5 5 . . . . 1 . 1 9 1 Hackware 6 | . . . . . 1 3 . . . . 2 . . . . Protection 6 | . . . . . 6 . . . . . . . . . . Artifact . | . . . . . . . . . . . . . . . . Weapon 48 | 2 2 3 . 2 19 2 . 5 . 4 4 . 1 1 3 Energy Gun 12 | 2 . . . . 9 1 . . . . . . . . . Energy Cannon . | . . . . . . . . . . . . . . . . Ballistic Gun 22 | . 2 2 . 2 7 . . 3 . 2 2 . . . 2 Ballistic Cannon . | . . . . . . . . . . . . . . . . Launcher 5 | . . 1 . . 3 . . . . 1 . . . . . Special Weapon . | . . . . . . . . . . . . . . . . Impact Weapon . | . . . . . . . . . . . . . . . . Slashing Weapon 7 | . . . . . . 1 . 2 . 1 2 . . 1 . Piercing Weapon 2 | . . . . . . . . . . . . . 1 . 1 Special Melee Weapon . | . . . . . . . . . . . . . . . . Unidentified Prototypes 10 | . . . . . 5 . . . . . 1 . . 4 . Parts Lost 29 | . . 1 . . 10 1 . . . 3 . 2 . . 12 Power 4 | . . . . . 1 . . . . 1 . 1 . . 1 Propulsion 7 | . . . . . 2 1 . . . 1 . . . . 3 Utility 9 | . . . . . 3 . . . . 1 . 1 . . 4 Weapon 9 | . . 1 . . 4 . . . . . . . . . 4 Highest Loss Streak 12 | . . 1 . . 3 1 . . . 2 . 2 . . 12 Average Slot Usage (%) 90 | . 99 99 89 85 87 91 92 92 92 90 92 93 94 99 80 Engine 5 | . 14 14 14 14 8 . . . . . . . 6 6 3 Core 2 | . . . . . . 7 7 7 7 6 6 6 . . . Treads 13 | . 28 28 28 28 24 . . . . . . . . . . Flight 10 | . . . . . . 22 23 23 23 23 20 20 20 20 12 Device 3 | . . . . . 1 7 7 7 7 7 6 6 6 5 3 Storage 10 | . 28 28 18 14 9 7 7 7 7 7 6 6 6 6 3 Processor 11 | . . . . . 12 17 7 7 7 7 12 13 17 23 41 Hackware 12 | . . . . . . 19 30 30 30 28 33 33 26 22 6 Protection 3 | . . . . . 10 . . . . . . . . . . Energy Gun 3 | . 7 . . . 7 . . . . . . . . . . Ballistic Gun 8 | . 19 27 28 28 10 . . 2 . . . . . . . Slashing Weapon 2 | . . . . . . 6 7 5 7 5 5 6 6 6 3 Naked Turns . | . . . . . . . . . . . . . . . . Heaviest Build 114 | 17 41 40 88 88 114 17 17 20 17 24 19 19 19 19 19 Greatest Support 60 | 40 40 40 40 40 60 19 17 17 17 19 20 20 20 20 20 Greatest Overweight (x) 5 | . 1 . 2 2 4 . . 1 . 5 . . . . . Average Overweight (x) . | . . . 1 2 1 . . . . . . . . . . Largest Inventory Capacity 28 | 8 16 16 24 24 28 8 8 8 8 8 8 8 8 8 8 Average Capacity 15 | 6 14 16 20 24 23 8 8 8 8 8 8 8 8 8 6 Most Carried 24 | 2 8 11 20 22 24 8 8 8 8 8 8 8 8 8 6 Average Carried 13 | 1 6 9 15 20 23 7 8 7 8 7 7 8 7 7 4 Final Capacity 24 | 8 16 16 24 24 8 8 8 8 8 8 8 8 8 8 4 Final Carried 22 | 2 8 11 19 22 6 8 8 8 8 8 8 8 8 6 3 Class Distribution -------------------- 29% | Hauler-Mutant 22% | Hacker-Scout 16% | Hacker-Sprinter 12% | Mutant 11% | Scavenger-Mutant 5% | Scout Dominant Class ---------------- Mutant | -10/Materials Mutant | -10/Mines Hauler-Mutant | -10/Exiles Hauler-Mutant | -9/Mines Hauler-Mutant | -8/Materials Hacker-Scout | -7/Factory Hacker-Sprinter | -7/Lower Caves Hacker-Sprinter | -7/Lower Caves Hacker-Sprinter | -7/Data Miner Hacker-Sprinter | -6/Proximity Caves Hacker-Scout | -6/Factory Hacker-Scout | -6/Lower Caves Hacker-Scout | -6/Lower Caves Hacker-Sprinter | -6/Zion Mutant | -6/Deep Caves Resources | -11 -10 -10 -10 -9 -8 -7 -7 -7 -7 -6 -6 -6 -6 -6 -6 ----------- Run | Scr Mat Min Exi Min Mat Fac Low Low Dat Pro Fac Low Low Zio Dee Matter Collected 2578 | 273 272 97 26 44 1221 170 . 160 . 78 119 . 57 61 . Remotely . | . . . . . . . . . . . . . . . . Salvage Created 3152 | 83 137 130 . 42 2118 368 . 134 . 21 119 . . . . Parts 193 | 2 9 8 . 7 135 22 . 4 . 4 2 . . . . Haulers Intercepted 6 | . . . . . 6 . . . . . . . . . . Recyclers Shooed 3 | . . . . 1 1 1 . . . . . . . . . Parts Field Recycled . | . . . . . . . . . . . . . . . . Retrieved Matter . | . . . . . . . . . . . . . . . . Parts Self-Destructed 21 | . . . . . . . . 8 . 8 . . 5 . . Prevented . | . . . . . . . . . . . . . . . . Kills | -11 -10 -10 -10 -9 -8 -7 -7 -7 -7 -6 -6 -6 -6 -6 -6 ------- Run | Scr Mat Min Exi Min Mat Fac Low Low Dat Pro Fac Low Low Zio Dee Combat Hostiles Destroyed 59 | . 4 5 . 2 37 5 . 3 . 2 . . . . 1 Melee 5 | . . . . . . 5 . . . . . . . . . Guns 42 | . 3 2 . 2 32 . . 3 . . . . . . . AOE 12 | . 1 3 . . 5 . . . . 2 . . . . 1 Classes Destroyed 11 | 1 4 . . 1 5 . . . . . . . . . . Worker 3 | . . . . . 3 . . . . . . . . . . Tunneler 3 | . . . . 1 2 . . . . . . . . . . Hauler 6 | . . . . . 6 . . . . . . . . . . Recycler 6 | 1 . 1 . . 2 1 . . . . 1 . . . . Operator 6 | . 1 . . . 3 2 . . . . . . . . . Watcher 8 | . 1 . . . 4 3 . . . . . . . . . Swarmer 26 | . 3 3 . 2 11 4 . 1 . 2 . . . . . Grunt 20 | . 1 2 . . 15 . . 2 . . . . . . . Duelist 1 | . . . . . 1 . . . . . . . . . . Sentry 10 | . . . . . 9 1 . . . . . . . . . Hunter 1 | . . . . . 1 . . . . . . . . . . Z-Technician 5 | . . . . . . . . . . . . . . . 5 Best Kill Streak 8 | 1 3 6 . 2 8 6 . 2 . 2 1 . . . 6 Combat Bots Only 6 | . 3 5 . 2 6 4 . 2 . 2 . . . . 1 Max Kills in Single Turn 6 | 1 1 2 . 1 3 1 . 1 . 1 1 . . . 6 Gunslinging . | . . . . . . . . . . . . . . . . Exploded 2 | . 1 2 . . 2 . . . . 1 . . . . 1 Melee 1 | . . . . . . 1 . . . . . . . . . Uniques/NPCs Destroyed 1 | . . . . . . . . . . . . . . . 1 Z-Imprinter (-6/Deep Caves) Combat | -11 -10 -10 -10 -9 -8 -7 -7 -7 -7 -6 -6 -6 -6 -6 -6 -------- Run | Scr Mat Min Exi Min Mat Fac Low Low Dat Pro Fac Low Low Zio Dee Damage Taken 5317 | 36 209 224 . 88 2200 304 . 49 . 405 77 56 19 . 1650 Core 1603 | 18 87 16 . 14 284 198 . . . 122 . . . . 864 Absorbed by Shields . | . . . . . . . . . . . . . . . . Core Remaining (%) 60 | 92 . . . 46 48 . . . . 54 . . . . . Volleys Fired 251 | 3 26 12 . 6 175 . . 15 . 4 3 . . . 7 Largest 2 | 2 2 2 . 2 2 . . 2 . 2 2 . . . 1 Hottest 112 | 90 90 53 . 40 112 . . 66 . 66 66 . . . 33 Shots Fired 456 | 6 51 22 . 12 327 . . 20 . 5 6 . . . 7 Gun 446 | 6 51 19 . 12 323 . . 20 . 2 6 . . . 7 Cannon . | . . . . . . . . . . . . . . . . Launcher 10 | . . 3 . . 4 . . . . 3 . . . . . Special . | . . . . . . . . . . . . . . . . Kinetic 326 | . 36 19 . 12 224 . . 20 . 2 6 . . . 7 Thermal 101 | 3 7 . . . 91 . . . . . . . . . . Explosive 10 | . . 3 . . 4 . . . . 3 . . . . . Electromagnetic 19 | 3 8 . . . 8 . . . . . . . . . . Robot Hit Streak 24 | 6 6 22 . 24 21 . . 2 . 4 5 . . . 8 Robot Miss Streak 4 | . 2 . . 2 4 . . 2 . . 1 . . . . Penetration Max . | . . . . . . . . . . . . . . . . Secondary Targets 1 | . . . . 1 . . . . . . . . . . . Max Gunslinging Chain 1 | . . . . 1 . . . . . . . . . . . Shots Hit Robots 345 | 6 33 20 . 8 231 22 . 8 . 3 8 . . . 6 Core Hits 157 | 2 11 11 . 4 98 12 . 5 . 4 3 . . . 7 Critical Hits 14 | . . . . . 4 1 . 3 . . 2 . . . 4 Critical Kills 5 | . . . . . 2 1 . 2 . . . . . . . Critical Parts Destroyed 6 | . . . . . 2 . . 1 . . 2 . . . 1 Melee Attacks 140 | . . . . . . 49 2 3 . 23 21 10 23 3 6 Impact . | . . . . . . . . . . . . . . . . Slashing 118 | . . . . . . 49 2 3 . 23 21 10 10 . . Piercing 22 | . . . . . . . . . . . . . 13 3 6 Sneak Attacks 7 | . . . . . . 6 . . . . 1 . . . . Combat Hostiles . | . . . . . . . . . . . . . . . . Follow-up Attacks . | . . . . . . . . . . . . . . . . Damage Inflicted 9826 | 117 361 450 . 105 4196 1454 . 39 . 215 302 . . . 2587 Guns 4319 | 80 253 159 . 105 3590 . . 39 . 13 33 . . . 47 Cannons . | . . . . . . . . . . . . . . . . Explosions 3768 | 37 108 291 . . 590 . . . . 202 . . . . 2540 Melee 1723 | . . . . . . 1454 . . . . 269 . . . . Ramming 16 | . . . . . 16 . . . . . . . . . . Kinetic 2822 | . 163 159 . 105 2263 . . 39 . 13 33 . . . 47 Thermal 3970 | 74 37 . . . 1319 . . . . . . . . . 2540 Explosive 1035 | . 108 291 . . 434 . . . . 202 . . . . . Electromagnetic 260 | 43 53 . . . 164 . . . . . . . . . . Impact . | . . . . . . . . . . . . . . . . Slashing 1723 | . . . . . . 1454 . . . . 269 . . . . Piercing . | . . . . . . . . . . . . . . . . Highest Corruption 2 | . . . . . . 1 1 1 1 1 . . . 2 2 Average Corruption 1 | . . . . . . 1 1 1 1 1 . . . 2 2 Corruption Purged . | . . . . . . . . . . . . . . . . Effects 9 | . . . . . . 1 1 1 . 3 . . . 3 . Message Errors 4 | . . . . . . 1 1 . . 2 . . . . . Heat Flow Errors 2 | . . . . . . . . . . . . . . 2 . Energy Discharges 2 | . . . . . . . . . . 1 . . . 1 . Data Loss (minor) 1 | . . . . . . . . 1 . . . . . . . Overload Shots . | . . . . . . . . . . . . . . . . Overflow Damage 1096 | . . . . . 37 338 . . . 25 43 . . . 653 Projectiles . | . . . . . . . . . . . . . . . . Explosions 715 | . . . . . 37 . . . . 25 . . . . 653 Melee 381 | . . . . . . 338 . . . . 43 . . . . Knockbacks . | . . . . . . . . . . . . . . . . Impact . | . . . . . . . . . . . . . . . . Kinetic . | . . . . . . . . . . . . . . . . Secondary . | . . . . . . . . . . . . . . . . Self-Inflicted Damage 487 | 37 70 . . . . . . . . . . . . . 380 Shots 3 | 1 1 . . . . . . . . . . . . . 1 Rammed 2 | . . . . . 2 . . . . . . . . . . Targets Rammed 2 | . . . . . 2 . . . . . . . . . . Kicked . | . . . . . . . . . . . . . . . . Crushed . | . . . . . . . . . . . . . . . . Highest Temperature 372 | 102 210 12 . . 372 . . 6 . 6 . . . 245 10 Average Temperature 84 | 51 95 8 . . 86 . . 4 . 6 . . . 111 10 Received Heat Transfer 1575 | . 30 87 . . 900 72 . 9 . 36 36 18 9 . 378 Effects 6 | . 1 . . . 5 . . . . . . . . . . Energy Bleed 4 | . . . . . 4 . . . . . . . . . . Interference 2 | . 1 . . . 1 . . . . . . . . . . Siege Activations . | . . . . . . . . . . . . . . . . Robots Corrupted . | . . . . . . . . . . . . . . . . Combat Hostiles . | . . . . . . . . . . . . . . . . Parts Fried 4 | . 1 . . . 3 . . . . . . . . . . Impact Corruptions . | . . . . . . . . . . . . . . . . Robots Melted . | . . . . . . . . . . . . . . . . Combat Hostiles . | . . . . . . . . . . . . . . . . Parts Melted 2 | . . . . . 2 . . . . . . . . . . Heat Transferred 2838 | 111 111 . . . 2616 . . . . . . . . . . Parts Sabotaged . | . . . . . . . . . . . . . . . . Parts Stolen . | . . . . . . . . . . . . . . . . Parts Stripped . | . . . . . . . . . . . . . . . . Power Chain Reactions 2 | 1 . . . . 1 . . . . . . . . . . Missiles Intercepted . | . . . . . . . . . . . . . . . . Alert | -11 -10 -10 -10 -9 -8 -7 -7 -7 -7 -6 -6 -6 -6 -6 -6 ------- Run | Scr Mat Min Exi Min Mat Fac Low Low Dat Pro Fac Low Low Zio Dee Peak Influence 417 | 5 180 119 . 94 417 384 . . . . 104 . . . . Average Influence 156 | 2 68 51 . 40 210 203 . . . . 20 . . . . Maximum Alert Level 2 | . . . . . 2 1 . . . . . . . . . Low Security (%) 61 | 100 100 100 . 100 37 59 . . . . 100 . . . . Level 1 38 | . . . . . 61 40 . . . . . . . . . Level 2 . | . . . . . . . . . . . . . . . . Level 3 . | . . . . . . . . . . . . . . . . Level 4 . | . . . . . . . . . . . . . . . . Level 5 . | . . . . . . . . . . . . . . . . High Security . | . . . . . . . . . . . . . . . . Max Security . | . . . . . . . . . . . . . . . . Squads Dispatched 18 | . 1 1 . . 2 6 . . . 1 7 . . . . Investigation 8 | . . . . . 1 3 . . . . 4 . . . . Extermination 5 | . . . . . . 2 . . . . 3 . . . . Reinforcement 2 | . 1 . . . 1 . . . . . . . . . . Assault 3 | . . 1 . . . 1 . . . 1 . . . . . Garrison . | . . . . . . . . . . . . . . . . Intercept . | . . . . . . . . . . . . . . . . Construction Impeded . | . . . . . . . . . . . . . . . . Haulers Reinforced . | . . . . . . . . . . . . . . . . Stealth | -11 -10 -10 -10 -9 -8 -7 -7 -7 -7 -6 -6 -6 -6 -6 -6 --------- Run | Scr Mat Min Exi Min Mat Fac Low Low Dat Pro Fac Low Low Zio Dee Distress Signals 7 | . . . . . 5 2 . . . . . . . . . Communications Jammed . | . . . . . . . . . . . . . . . . Distress Signals . | . . . . . . . . . . . . . . . . Times Spotted 180 | . 16 5 . 3 69 22 6 4 . 30 10 7 2 . 6 Peak Tracking Total 15 | . 3 4 . 3 6 7 7 3 . 15 5 7 4 . 9 Tactical Retreats 17 | . 1 . . . 1 6 2 2 . 3 2 . . . . Traps | -11 -10 -10 -10 -9 -8 -7 -7 -7 -7 -6 -6 -6 -6 -6 -6 ------- Run | Scr Mat Min Exi Min Mat Fac Low Low Dat Pro Fac Low Low Zio Dee Traps Triggered 3 | . . . . . 1 2 . . . . . . . . . Indirectly . | . . . . . . . . . . . . . . . . Trap Hack Attempts . | . . . . . . . . . . . . . . . . Triggered . | . . . . . . . . . . . . . . . . Disarmed 4 | . . . . . . . . . . . 4 . . . . Reprogrammed . | . . . . . . . . . . . . . . . . Reused . | . . . . . . . . . . . . . . . . Traps Extracted . | . . . . . . . . . . . . . . . . Installed . | . . . . . . . . . . . . . . . . Triggered 4 | . . . . . . . . . . . . . 4 . . Exploded 1 | . . . . . 1 . . . . . . . . . . Machines | -11 -10 -10 -10 -9 -8 -7 -7 -7 -7 -6 -6 -6 -6 -6 -6 ---------- Run | Scr Mat Min Exi Min Mat Fac Low Low Dat Pro Fac Low Low Zio Dee Machines Disabled 8 | . 2 . . . 4 . . . . . . . . . 2 Max in Single Turn 2 | . 2 . . . 1 . . . . . . . . . 1 Machines Sabotaged . | . . . . . . . . . . . . . . . . Garrisons Compromised . | . . . . . . . . . . . . . . . . Overloaded Fab Kills . | . . . . . . . . . . . . . . . . Fab Network Shutdowns . | . . . . . . . . . . . . . . . . Hacking | -11 -10 -10 -10 -9 -8 -7 -7 -7 -7 -6 -6 -6 -6 -6 -6 --------- Run | Scr Mat Min Exi Min Mat Fac Low Low Dat Pro Fac Low Low Zio Dee Machines Accessed 47 | . 2 . 1 . 11 18 . . 4 . 10 . 1 . . Terminals 33 | . 2 . . . 10 14 . . . . 7 . . . . Fabricators 3 | . . . . . . 2 . . . . 1 . . . . Repair Stations . | . . . . . . . . . . . . . . . . Recycling Units . | . . . . . . . . . . . . . . . . Scanalyzers 3 | . . . . . 1 1 . . . . 1 . . . . Garrison Access 2 | . . . . . . 1 . . . . 1 . . . . Total Hacks 180 | . 8 . 1 . 24 64 . . 28 . 54 . 1 . . Successful 114 | . 5 . 1 . 16 33 . . 28 . 30 . 1 . . Failed 65 | . 3 . . . 8 31 . . . . 23 . . . . Catastrophic 11 | . 1 . . . 1 6 . . . . 3 . . . . Database Lockouts 1 | . . . . . . . . . . . 1 . . . . Manual 111 | . 7 . . . 19 37 . . . . 43 . . 5 . Terminals 124 | . 8 . . . 21 51 . . . . 44 . . . . Fabricators 16 | . . . . . . 9 . . . . 7 . . . . Repair Stations . | . . . . . . . . . . . . . . . . Recycling Units . | . . . . . . . . . . . . . . . . Scanalyzers 8 | . . . . . 3 3 . . . . 2 . . . . Garrison Access 2 | . . . . . . 1 . . . . 1 . . . . Terminal Hacks 68 | . 4 . 1 . 5 15 . . 28 . 14 . 1 . . Record 13 | . . . 1 . . 1 . . 11 . . . . . . Part Schematic 12 | . . . . . . 4 . . 7 . 1 . . . . Robot Schematic 7 | . . . . . . . . . 7 . . . . . . Robot Analysis 3 | . 3 . . . . . . . . . . . . . . Prototype ID Bank 3 | . . . . . . . . . 3 . . . . . . Open Door 1 | . . . . . . . . . . . . . 1 . . Branch Access Points 2 | . . . . . . 1 . . . . 1 . . . . Terminal Index 3 | . . . . . 1 1 . . . . 1 . . . . Repair Station Index 1 | . . . . . . . . . . . 1 . . . . Unreport Threat 5 | . . . . . 2 2 . . . . 1 . . . . Locate Traps 5 | . . . . . 1 2 . . . . 2 . . . . Disarm Traps 1 | . . . . . . . . . . . 1 . . . . Patrol Status 1 | . . . . . . . . . . . 1 . . . . Recall Investigation 2 | . . . . . . 1 . . . . 1 . . . . Recall Extermination 5 | . . . . . . 2 . . . . 3 . . . . Recall Reinforcements 1 | . 1 . . . . . . . . . . . . . . Recall Assault 1 | . . . . . . 1 . . . . . . . . . Hauler Manifests 1 | . . . . . 1 . . . . . . . . . . Zone Layout 1 | . . . . . . . . . . . 1 . . . . Fabricator Hacks 12 | . . . . . . 6 . . . . 6 . . . . Load Schematic 5 | . . . . . . 2 . . . . 3 . . . . Build 7 | . . . . . . 4 . . . . 3 . . . . Repair Station Hacks . | . . . . . . . . . . . . . . . . Recycling Unit Hacks . | . . . . . . . . . . . . . . . . Scanalyzer 7 | . . . . . 3 2 . . . . 2 . . . . Insert Component 3 | . . . . . 1 1 . . . . 1 . . . . Analyze 4 | . . . . . 2 1 . . . . 1 . . . . Garrison Access Hacks . | . . . . . . . . . . . . . . . . Unauthorized Hacks 27 | . 1 . . . 8 10 . . . . 8 . . . . Terminals 21 | . 1 . . . 8 6 . . . . 6 . . . . Track 3 | . . . . . 1 1 . . . . 1 . . . . Assimilate 7 | . . . . . 2 3 . . . . 2 . . . . Botnet 8 | . 1 . . . 3 2 . . . . 2 . . . . Disrupt 2 | . . . . . 1 . . . . . 1 . . . . Operators 1 | . . . . . 1 . . . . . . . . . . Fabricators 4 | . . . . . . 3 . . . . 1 . . . . Report 1 | . . . . . . 1 . . . . . . . . . Siphon 3 | . . . . . . 2 . . . . 1 . . . . Repair Stations . | . . . . . . . . . . . . . . . . Recycling Units . | . . . . . . . . . . . . . . . . Scanalyzers . | . . . . . . . . . . . . . . . . Garrison Access 2 | . . . . . . 1 . . . . 1 . . . . Reprogram 2 | . . . . . . 1 . . . . 1 . . . . Data Cores Recovered 1 | . . . . . . 1 . . . . . . . . . Used 1 | . . . . . . 1 . . . . . . . . . Hacking Detections 34 | . 2 . . . 7 16 . . . . 9 . . . . Full Trace Events 7 | . . . . . 1 3 . . . . 3 . . . . Feedback Events 1 | . . . . . . 1 . . . . . . . . . Corruption 1 | . . . . . . 1 . . . . . . . . . Feedback Blocked . | . . . . . . . . . . . . . . . . Robot Schematics Acquired 7 | . . . . . . . . . 7 . . . . . . Robots Built . | . . . . . . . . . . . . . . . . Matter . | . . . . . . . . . . . . . . . . Time . | . . . . . . . . . . . . . . . . Total Robot Build Rating . | . . . . . . . . . . . . . . . . Part Schematics Acquired 15 | . . . . . 1 5 . . 7 . 2 . . . . Parts Built 8 | . . . . . . 5 . . . . 3 . . . . Matter 1128 | . . . . . . 568 . . . . 560 . . . . Time 576 | . . . . . . 380 . . . . 196 . . . . Total Part Build Rating 39 | . . . . . . 25 . . . . 14 . . . . Parts Repaired . | . . . . . . . . . . . . . . . . Time . | . . . . . . . . . . . . . . . . Parts Recycled . | . . . . . . . . . . . . . . . . Recycled Matter . | . . . . . . . . . . . . . . . . Retrieved Matter . | . . . . . . . . . . . . . . . . Retrieved Components . | . . . . . . . . . . . . . . . . Parts Scanalyzed 3 | . . . . . 1 1 . . . . 1 . . . . Part Schematics Acquired 3 | . . . . . 1 1 . . . . 1 . . . . Parts Damaged . | . . . . . . . . . . . . . . . . Bothacking | -11 -10 -10 -10 -9 -8 -7 -7 -7 -7 -6 -6 -6 -6 -6 -6 ------------ Run | Scr Mat Min Exi Min Mat Fac Low Low Dat Pro Fac Low Low Zio Dee Used RIF Installer . | . . . . . . . . . . . . . . . . Robots Hacked . | . . . . . . . . . . . . . . . . Non-combat . | . . . . . . . . . . . . . . . . Combat . | . . . . . . . . . . . . . . . . Robot Hacks Applied . | . . . . . . . . . . . . . . . . Relay Couplers Released . | . . . . . . . . . . . . . . . . Robots Rewired 2 | . . . . . . . 2 . . . . . . . . Allies Hacked 1 | . . . . . . . . . . . 1 . . . . Hacks Repelled . | . . . . . . . . . . . . . . . . Allies | -11 -10 -10 -10 -9 -8 -7 -7 -7 -7 -6 -6 -6 -6 -6 -6 -------- Run | Scr Mat Min Exi Min Mat Fac Low Low Dat Pro Fac Low Low Zio Dee Total Allies 11 | . . 1 . . 2 2 2 . . 1 3 . . . . Largest Group 3 | . . 1 1 1 1 2 3 3 1 2 2 . . . . Highest-Rated Group 104 | . . 31 31 31 31 36 58 58 10 104 48 . . . . Highest-Rated Ally 94 | . . 31 31 31 31 26 32 32 10 94 38 . . . . Total Orders 40 | . . . . . 4 12 4 13 . 5 2 . . . . STAY 23 | . . . . . 3 6 2 8 . 3 1 . . . . FOLLOW 17 | . . . . . 1 6 2 5 . 2 1 . . . . Ally Attacks 34 | . . . . 4 12 . . 5 . 9 4 . . . . Total Damage 517 | . . . . 42 106 . . 148 . 145 76 . . . . Kills 6 | . . . . 1 . . . 2 . 3 . . . . . Allies Corrupted . | . . . . . . . . . . . . . . . . Allies Melted . | . . . . . . . . . . . . . . . . Intel | -11 -10 -10 -10 -9 -8 -7 -7 -7 -7 -6 -6 -6 -6 -6 -6 ------- Run | Scr Mat Min Exi Min Mat Fac Low Low Dat Pro Fac Low Low Zio Dee Robot Analysis Total 3 | . 3 . . . . . . . . . . . . . . Derelict Logs Recovered 6 | . . . . . . . . 1 . . . 1 1 3 . Drone Launches . | . . . . . . . . . . . . . . . . Drone Recoveries . | . . . . . . . . . . . . . . . . Exploration | -11 -10 -10 -10 -9 -8 -7 -7 -7 -7 -6 -6 -6 -6 -6 -6 ------------- Run | Scr Mat Min Exi Min Mat Fac Low Low Dat Pro Fac Low Low Zio Dee Turns Passed 10136 | 115 465 437 613 132 3628 1562 290 396 28 326 1112 368 187 367 110 Spaces Moved 10285 | 64 222 246 326 56 1652 2959 585 546 77 677 1120 372 339 871 173 Core 79 | 16 . . . . . . . . . 2 . . . . 61 Treads 2451 | 48 222 246 326 56 1553 . . . . . . . . . . Legs . | . . . . . . . . . . . . . . . . Wheels 67 | . . . . . 67 . . . . . . . . . . Hover . | . . . . . . . . . . . . . . . . Flight 7688 | . . . . . 32 2959 585 546 77 675 1120 372 339 871 112 Fastest Speed 26 | 50 160 160 160 200 30 29 29 29 29 26 29 29 29 29 30 Average Speed 65 | 132 161 160 181 200 175 29 29 33 29 29 29 29 29 29 37 Slowest Speed 300 | 160 180 160 200 200 200 30 29 97 29 300 30 29 29 30 50 Overloaded Moves 25 | . . . . . . . . . . 25 . . . . . Propulsion Burnouts . | . . . . . . . . . . . . . . . . Robots Hopped 36 | . . . . . . 16 . . . 3 16 1 . . . Cave-ins Triggered . | . . . . . . . . . . . . . . . . Exploration Rate (%) 50 | 6 44 48 55 14 92 43 54 55 68 60 24 61 56 82 46 Regions Visited 15 Branch Regions 11 Pre-discovered Areas 3 | . . . 1 . . . . . 1 . . . . 1 . Known Exits Taken 9 | . . . . . 1 1 1 1 1 1 1 . 1 1 . Unknown Exits Taken 6 | 1 1 1 1 1 . . . . . . . 1 . . . Scrap Searched 10 | . . 1 . . . . 1 2 . 1 . . 2 3 . Spaces Dug 116 | . . . . . 18 26 2 . . 23 16 10 21 . . Terrain Destroyed 260 | . 26 19 . . 77 26 2 . . 61 16 10 21 . 2 Melee 98 | . . . . . . 26 2 . . 23 16 10 21 . . Projectile . | . . . . . . . . . . . . . . . . AOE 162 | . 26 19 . . 77 . . . . 38 . . . . 2 Actions | -11 -10 -10 -10 -9 -8 -7 -7 -7 -7 -6 -6 -6 -6 -6 -6 --------- Run | Scr Mat Min Exi Min Mat Fac Low Low Dat Pro Fac Low Low Zio Dee Total 13026 | 84 284 269 349 65 2103 3563 702 731 81 757 1843 615 399 977 204 Wait 2072 | 9 27 5 . . 133 528 109 160 5 47 690 235 35 75 14 Move 10203 | 63 221 245 325 55 1651 2928 584 545 76 670 1089 370 338 870 173 Hop 31 | . . . . . . 14 . . . 3 14 . . . . Pick Up 78 | 1 4 4 19 2 22 13 1 . . 1 7 . 1 3 . Fast Attach 57 | 7 2 . 1 . 25 7 . . . . 4 . 2 9 . Attach 35 | . . 1 . . 16 2 . 1 . 4 4 . 1 3 3 Detach 6 | . . . . . . 1 . 1 . 3 1 . . . . Swap 46 | 1 2 2 . 2 20 8 . 5 . 2 3 . . . 1 Drop 101 | . 2 . 4 . 59 13 1 1 . . 7 . . 14 . Fire 251 | 3 26 12 . 6 175 . . 15 . 4 3 . . . 7 Melee 139 | . . . . . . 49 2 3 . 23 21 10 22 3 6 Ram . | . . . . . . . . . . . . . . . . Kick . | . . . . . . . . . . . . . . . . Crush 2 | . . . . . 2 . . . . . . . . . . Escape Stasis . | . . . . . . . . . . . . . . . . Rewire 5 | . . . . . . . 5 . . . . . . . . Trap . | . . . . . . . . . . . . . . . . Miscellaneous . | . . . . . . . . . . . . . . . . Route ------- -11/Scrapyard -10/Materials (discovered 2 exits: [*Mat] / [*Min]) -10/Mines (discovered 2 exits: [*Mat] / *Exi) -10/Exiles -9/Mines -8/Materials (discovered 4 exits: *Fac x3 / [*Sto]) -7/Factory (discovered 5 exits: *Fac x3 / *Low x2) -7/Lower Caves -7/Lower Caves -7/Data Miner -6/Proximity Caves -6/Factory (discovered 2 exits: *Low x2) -6/Lower Caves -6/Lower Caves -6/Zion (discovered 2 exits: *Dee / [*Pro]) -6/Deep Caves History --------- Turn | Location | Event 4 | -11/Scrapyard | Discovered new exit (range 16) 116 | -11/Scrapyard | Entered Materials 309 | -10/Materials | Build established: Mutant 327 | -10/Materials | Discovered new exit (range 16) 561 | -10/Materials | Discovered new exit (range 8) 581 | -10/Materials | Entered Mines 605 | -10/Mines | Discovered new exit (range 7) 731 | -10/Mines | Received a Rocket Launcher from a helpful Derelict 986 | -10/Mines | Met a Derelict testing a Signal Generator 993 | -10/Mines | Found Signal Generator 1011 | -10/Mines | Deemed a non-threat by the Exiles lab entrance 1011 | -10/Mines | Discovered new exit (range 5) 1018 | -10/Mines | Entered Exiles 1018 | -10/Exiles | Accompanied by 1 ally 1061 | -10/Exiles | Met 8R-AWN 1087 | -10/Exiles | Met EX-HEX 1169 | -10/Exiles | Met EX-DEC 1439 | -10/Exiles | Learned location of Zion (-6) 1524 | -10/Exiles | Build established: Hauler-Mutant 1603 | -10/Exiles | Discovered new exit (range 14) 1631 | -10/Exiles | Entered Mines 1631 | -9/Mines | Accompanied by 1 ally 1660 | -9/Mines | Met a Derelict bent on vengeance 1710 | -9/Mines | Core integrity fell below 50% 1751 | -9/Mines | Discovered new exit (range 6) 1763 | -9/Mines | Entered Materials 1763 | -8/Materials | Accompanied by 1 ally 1763 | -8/Materials | Evolved 4 slots: Propulsion x1, Utility x3 2460 | -8/Materials | Build established: Scavenger-Mutant 2559 | -8/Materials | Discovered new exit (range 20) 2874 | -8/Materials | Build established: Hauler-Mutant 3228 | -8/Materials | Discovered new exit (range 12) 3430 | -8/Materials | Discovered new exit (range 11) 3857 | -8/Materials | Lost 3 parts (1u2w) 3985 | -8/Materials | Discovered new exit (range 17) 4036 | -8/Materials | Core integrity fell below 50% 4119 | -8/Materials | Build established: Scavenger-Mutant 4871 | -8/Materials | Build established: Hauler-Mutant 5391 | -8/Materials | Identified exit to Factory 5391 | -8/Materials | Entered Factory 5391 | -7/Factory | Evolved 2 slots: Utility x2 5426 | -7/Factory | Discovered new exit (range 12) 5548 | -7/Factory | Discovered new exit (range 15) 5677 | -7/Factory | Build established: Scout 5908 | -7/Factory | Discovered new exit (range 18) 6146 | -7/Factory | Identified exit to Lower Caves 6176 | -7/Factory | Build established: Hacker-Scout 6428 | -7/Factory | Fabricated Imp. Hacking Suite (x1) 6525 | -7/Factory | Fabricated Imp. Hacking Suite (x1) 6600 | -7/Factory | Fabricated Hyp. Gauss Rifle? 6723 | -7/Factory | Build established: Hacker-Sprinter 6778 | -7/Factory | Fabricated Imp. Hacking Suite? 6953 | -7/Factory | Entered Lower Caves 6953 | -7/Lower Caves | Accompanied by 1 ally 6988 | -7/Lower Caves | Encountered a Warlord checkpoint 7182 | -7/Lower Caves | Discovered new exit (range 3) 7182 | -7/Lower Caves | Identified exit to Lower Caves 7243 | -7/Lower Caves | Entered another Lower Caves area 7243 | -7/Lower Caves | Accompanied by 3 allies 7278 | -7/Lower Caves | Learned 12 Factory zone layouts 7633 | -7/Lower Caves | Discovered new exit (range 7) 7635 | -7/Lower Caves | Identified exit to Data Miner 7639 | -7/Lower Caves | Entered Data Miner 7639 | -7/Data Miner | Accompanied by 1 ally 7639 | -7/Data Miner | Discovered new exit (range 6) 7645 | -7/Data Miner | Met Data Miner 7651 | -7/Data Miner | Learned location of Section 7 (-3) 7651 | -7/Data Miner | Acquired the access code to Warlord's prototype stash 7654 | -7/Data Miner | Received God Mode back door access code from Data Miner 7661 | -7/Data Miner | Identified exit to Proximity Caves 7667 | -7/Data Miner | Entered Proximity Caves 7667 | -6/Proximity Caves | Accompanied by 1 ally 7773 | -6/Proximity Caves | Escorted by Enhanced Grunt 7921 | -6/Proximity Caves | Attracted the attention of an 0b10 outpost 7931 | -6/Proximity Caves | Spotted B-75 Beast 7992 | -6/Proximity Caves | Discovered new exit (range 5) 7993 | -6/Proximity Caves | Identified exit to Factory 7993 | -6/Proximity Caves | Entered Factory 7993 | -6/Factory | Evolved 2 slots: Utility x2 7994 | -6/Factory | Identified exit to Lower Caves 8122 | -6/Factory | Discovered exit to Lower Caves (range 21) 8248 | -6/Factory | Central database locked down 8331 | -6/Factory | Build established: Hacker-Scout 8516 | -6/Factory | Fabricated Exp. Sensor Array (x1) 9019 | -6/Factory | Fabricated Exp. Cesium-ion Thruster? 9058 | -6/Factory | Fabricated Adv. Targeting Computer? 9098 | -6/Factory | Incoming investigation squad redirected 9105 | -6/Factory | Entered Lower Caves 9266 | -6/Lower Caves | Discovered new exit (range 21) 9473 | -6/Lower Caves | Entered another Lower Caves area 9548 | -6/Lower Caves | Encountered a Warlord checkpoint 9580 | -6/Lower Caves | Learned Factory garrison access intel 9658 | -6/Lower Caves | Discovered new exit (range 10) 9660 | -6/Lower Caves | Identified exit to Zion 9660 | -6/Lower Caves | Entered Zion 9675 | -6/Zion | Discovered new exit (range 16) 9715 | -6/Zion | Learned 8 Factory zone layouts 9734 | -6/Zion | Found Prototype Processor 9734 | -6/Zion | Identified Exp. Core Analyzer 9737 | -6/Zion | Found Prototype Processor 9737 | -6/Zion | Identified Exp. Target Analyzer 9739 | -6/Zion | Found Prototype Processor 9739 | -6/Zion | Identified Spectral Analyzer 9826 | -6/Zion | Acquired unknown access codes intercepted by a Zionite 9847 | -6/Zion | Learned location of 1 exit from Factory 9888 | -6/Zion | Learned Factory trap positions 10016 | -6/Zion | Opened final containment barrier to the Deep Caves 10021 | -6/Zion | Discovered new exit (range 3) 10021 | -6/Zion | Saw the warning signs outside the Deep Caves entrance 10026 | -6/Zion | Identified exit to Deep Caves 10027 | -6/Zion | Entered Deep Caves 10067 | -6/Deep Caves | Z-Facility disabled 10078 | -6/Deep Caves | Attacked by Z-Imprinter 10084 | -6/Deep Caves | Destroyed Z-Imprinter 10101 | -6/Deep Caves | Core integrity fell below 50% 10113 | -6/Deep Caves | Core integrity fell below 20% 10137 | -6/Deep Caves | Destroyed by as-57732 with Assembled Heavy Rifle Last Messages --------------- 10084_ Destroyed Power Sword. 10084_ Imp. Flight Unit destroyed. 10084_ Destroyed Imp. Flight Unit. 10084_ Hyp. Gauss Rifle destroyed. 10084_ Destroyed Hyp. Gauss Rifle. 10091_ Cesium-ion Thruster destroyed. 10093_ Mak. Spear destroyed. 10094_ HV Slug penetrates P7-A68(z). 10099_ Med. Storage Unit destroyed. 10100_ HV Slug penetrates P7-A68(z). 10100_ P7-A68(z) suffers critical hit. 10102_ HV Slug penetrates P7-A68(z). 10103_ Imp. Cesium-ion Thruster destroyed. 10104_ HV Slug penetrates P7-A68(z). 10104_ P7-A68(z) suffers critical hit. 10104_ Destroyed Prototype Device. 10105_ Hyp. Gauss Rifle destroyed. 10117_ Adv. Targeting Computer destroyed. 10134_ System Shield destroyed. [Achievement: Back For More] Map ----- +----------------------------------------------------+ | | | | | | | | | | | | | | | | | | | | | | | | | | | | | ?????????????????????????????????????????????????? | | ?????????????????????????????????????????????????? | | ?????????????????????????????????????????????????? | | ???????????????????????###???????????????????????? | | ??????????????????????? #??????????????????????? | | ???????????????????????? ??????????????????????? | | ???????????????????????? ??????????????????????? | | ???????????????????#???? ??????????????????????? | | ???????????????????# ??? #??????????????????????? | | ?????????????????### #??# #??????????????????????? | | ????????????????## ?# #??????????????????????? | | ????????????????# ?#@#??????????????????????? | | ????????????????# ?# #??????????????????????? | | ?????????????????# ## ##?????????????????????? | | ??????????????????# ##????????????????????? | | ??????????????????## #????????????????????? | | ???????????????????### #??????? ?????????? | | ?????????????????????## #??????? ???????? | | ??????????????????????## #??????? ?? | | ???????????????????????# ##??????# | | ???????????????????????#a ##????#### | | ???????????????????##### #?????# # | | ???????????????????# # #?????? | | ???????????????????# ###???? | | ???????????????????# ##???? | | ?????????????###???## #???? | | ?????????????# ???# #????? | | ????????????? ### #????? | | ???????????? #?????? | | ???????????? #?????? | | ????????????? #??##### | | ????????????? #### ##?## ## | | ?????????????# #???## ##??# ## | | ?????????????####?????# ##???# # | | ??????????????????????# #???## | | ?????????????????????## ##### | +----------------------------------------------------+ Best States ------------- Heat Dissipation 37 Coolant Potential 65 Energy Generation 18 Energy Capacity 265 Matter Stores 300 Matter Capacity 300 Sight Range 22 Robot Scan Range 30 Terrain Scan Density 10 Armor Coverage 300 Resistance: KI 30 Resistance: EM 15 Core Shielding 20 Evasion (%) 64 Targeting Accuracy 32 Melee Accuracy 10 Launcher Accuracy 20 Core Analysis 15 Recoil Reduction 3 Salvage Targeting 1 Offensive Hacking 36 Defensive Hacking 20 Item Schematics ----------------- Humpback | -8/Materials | Scanalyzed Cld. VTOL Module | -7/Factory | Scanalyzed Imp. Hacking Suite | -7/Factory | Hacked Hyp. Gauss Rifle | -7/Factory | Hacked Xenon Bombardment Thruster | -7/Factory | Hacked Imp. Weapon Cycler | -7/Factory | Hacked Combat Drone Bay | -7/Data Miner | Free Lgt. Regenerative Plating | -7/Data Miner | Free Exp. Cesium-ion Thruster | -7/Data Miner | Free Cloaking Device | -7/Data Miner | Free Mni. Smartbomb Launcher | -7/Data Miner | Free Plasma Sword | -7/Data Miner | Free Kinetic Spear | -7/Data Miner | Free Adv. Targeting Computer | -6/Factory | Scanalyzed Exp. Sensor Array | -6/Factory | Hacked Robot Schematics ------------------ S-27 Virus | -7/Data Miner | Free G-50 Soldier | -7/Data Miner | Free L-41 Fighter | -7/Data Miner | Free X-72 Disruptor | -7/Data Miner | Free H-66 Slayer | -7/Data Miner | Free P-70 Sage | -7/Data Miner | Free I-36 Angel | -7/Data Miner | Free Fabricated ------------ Imp. Hacking Suite | x1 | -7/Factory Imp. Hacking Suite | x1 | -7/Factory Hyp. Gauss Rifle | x2 | -7/Factory Imp. Hacking Suite | x1 | -7/Factory Exp. Sensor Array | x1 | -6/Factory Exp. Cesium-ion Thruster | x1 | -6/Factory Adv. Targeting Computer | x1 | -6/Factory Alien Tech Used ----------------- None Achievements -------------- Back For More Hard Hitter Challenges ------------ None Game ------ Seed TransdimensionalPhaseThrower Manual? 0 Play Time 02:05:07 Cumulative 115.1 hours Start 2020.06.14 @ 16:52:05 End 2020.06.15 @ 07:13:46 Sessions 7 Manual Loads 0 Difficulty Rogue Special Mode None Game No. 50 Rogue 50 Adventurer 0 Explorer 0 Win Type - Total 6 Types 5/0/0/1/0/0/0 Lore% 68 Gallery% 62 Achievement% 55 Wizard Run 0 Options --------- ASCII 1 Keyboard 0 Movement Numpad Keybinds 0 Fullscreen 1 Font 18/SmallcapsGlow Map View 76x50 Tactical HUD 1 Map Filters NONE Filters NONE Steam 1 RUN: b3e96fcd-da08-49aa-a2e2-44800ea708d7